Cogmind - Beta 16.1 @@@ ROGUE MODE // 2026.04.05 @ 16:29:28 Player: KURIIRI Result: Core destroyed Performance ------------- Evolutions (0) 0 Regions Visited (2) 400 Robots Destroyed (34) 170 Value Destroyed (940) 940 Prototype IDs (13) 260 Alien Tech Used (0) 0 Bonus (-67) -67 TOTAL SCORE: 1703 Bonus ------- Friendly Fire -67 Cogmind --------- Core Integrity 0/250 Matter 251/300 Energy 100/100 System Corruption 19% Temperature Cool (0) Movement Core (400) Ox7 Location -10/Subcaves Parts ------- > --- POWER (1) -------- (None) > --- PROPULSION (2) --- Spiked Treads Compact Wheel > --- UTILITY (2) ------ Scrap Shield > --- WEAPON (2) ------- Battle Rifle Battle Rifle > --- INVENTORY (5) ---- Ion Engine Medium Storage Unit Medium Matter Pod (14) Hammer Scrap Shield Fragment (46) Peak State ------------ > --- POWER ------------ Subdweller Power Source > --- PROPULSION ------- Spiked Treads Subdweller Monowheel > --- UTILITY ---------- Medium Storage Unit Medium Armor Plating > --- WEAPON ----------- Subdweller Beam Cannon Hammer > --- INVENTORY -------- Ion Engine Spiked Treads Compact Wheel Medium Matter Pod Medium Matter Pod Medium Armor Plating Medium Armor Plating Medium Armor Plating Subdweller Laser Grenade Launcher [Rating: 13] Favorites ----------- Power Ion Engine Engine Ion Engine Propulsion Light Treads Treads Light Treads Leg Aluminum Leg Wheel Compact Wheel Utility Medium Storage Unit Storage Medium Storage Unit Protection Scrap Shield Weapon Subdweller Machine Gun Energy Gun Small Laser Energy Cannon Subdweller Beam Cannon Ballistic Gun Subdweller Machine Gun Launcher Grenade Launcher Impact Weapon Hammer Build | -11 -10 -10 ------- Run | Yrd Mat Sub Slots Evolved . | . . . Power . | . . . Propulsion . | . . . Utility . | . . . Weapon . | . . . Parts Attached 24 | 2 7 15 Power 2 | . 1 1 Engine 2 | . 1 1 Core . | . . . Reactor . | . . . Propulsion 6 | 2 . 4 Treads 4 | 2 . 2 Leg . | . . . Wheel 2 | . . 2 Hover . | . . . Flight . | . . . Utility 6 | . 2 4 Device . | . . . Storage 1 | . 1 . Processor . | . . . Hackware . | . . . Protection 5 | . 1 4 Artifact . | . . . Weapon 10 | . 4 6 Energy Gun 3 | . 2 1 Energy Cannon 1 | . . 1 Ballistic Gun 4 | . 1 3 Ballistic Cannon . | . . . Launcher 1 | . 1 . Special Weapon . | . . . Impact Weapon 1 | . . 1 Slashing Weapon . | . . . Piercing Weapon . | . . . Special Melee Weapon . | . . . Unidentified Prototypes . | . . . Parts Lost 9 | . 2 7 Power 1 | . . 1 Propulsion 1 | . . 1 Utility 2 | . . 2 Weapon 5 | . 2 3 Highest Loss Streak 2 | . 2 2 To Critical Strikes . | . . . Average Backups 6 | 6 7 6 Power 1 | 1 1 1 Propulsion 1 | 4 2 . Utility 2 | . 2 2 Weapon 1 | 1 1 1 Tool/Special . | . . . Unused Backups 9 | . 4 5 Power 4 | . 3 1 Propulsion 2 | . 1 1 Utility 3 | . . 3 Weapon . | . . . Tool/Special . | . . . Average Slot Usage (%) 83 | . 94 79 Engine 8 | . 14 6 Treads 19 | . 28 16 Wheel 8 | . . 11 Storage 8 | . 17 4 Protection 10 | . 5 12 Energy Gun 9 | . 19 6 Energy Cannon 2 | . . 4 Ballistic Gun 9 | . 8 9 Impact Weapon 4 | . . 5 Peak Build Rating 13 | 6 10 13 Average Rating 9 | 5 7 10 On Entrance 7 | 6 6 10 Avg Prop Armor Cover (%) 6 | . . 6 Naked Turns . | . . . Heaviest Build 35 | 11 26 35 Greatest Support 40 | 40 40 40 Greatest Overweight (x) 1 | . . 1 Average Overweight (x) . | . . . Largest Inventory Capacity 10 | 8 10 10 Average Capacity 7 | 8 9 6 Most Carried 10 | 6 10 10 Average Carried 6 | 5 7 6 Final Capacity 10 | 8 10 5 Final Carried 10 | 4 10 5 Class Distribution -------------------- 84% | Mutant 15% | Subdweller-Mutant Dominant Class ---------------- Mutant | -10/Materials Mutant | -10/Subcaves Resources | -11 -10 -10 ----------- Run | Yrd Mat Sub Matter Collected 982 | 218 341 423 Remotely . | . . . Salvage Created 1265 | 89 644 532 Parts 69 | 1 37 31 Haulers Intercepted 1 | . 1 . Recyclers Shooed 2 | . 2 . Parts Field Recycled . | . . . Retrieved Matter . | . . . Parts Self-Destructed 11 | . . 11 Prevented . | . . . Parts Restored . | . . . Kills | -11 -10 -10 ------- Run | Yrd Mat Sub Combat Hostiles Destroyed 24 | . 9 15 Melee 1 | . . 1 Guns 9 | . 5 4 Cannons 9 | . . 9 AOE 5 | . 4 1 Classes Destroyed 11 | 2 6 3 Builder 2 | . 2 . Tunneler 1 | 1 . . Hauler 1 | . 1 . Recycler 4 | 1 3 . Operator 1 | . 1 . Watcher 1 | . 1 . Swarmer 3 | . 3 . Grunt 6 | . 6 . Sentry 1 | . . 1 Artisan 2 | . . 2 Subdweller 14 | . . 14 Best Kill Streak 6 | 2 6 3 Combat Bots Only 3 | . 3 3 Max Kills in Single Turn 3 | 1 3 1 Gunslinging . | . . . Exploded 2 | . 2 1 Melee 1 | . . 1 Uniques/NPCs Destroyed . | . . . Combat | -11 -10 -10 -------- Run | Yrd Mat Sub Hostile Shots Fired 97 | . 33 64 Missed 17 | . 4 13 Hits 80 | . 29 51 Projectile 80 | . 29 51 AOE 7 | . . 7 Critical Strikes 1 | . . 1 Damage Taken 1772 | . 364 1408 Core 250 | . 53 197 Absorbed by Shields . | . . . Core Remaining (%) 100 | 100 . . Volleys Fired 119 | 6 49 64 Largest 2 | 2 2 2 Hottest 140 | 60 105 140 Shots Fired 176 | 12 93 71 Gun 139 | 12 90 37 Cannon 31 | . . 31 Launcher 6 | . 3 3 Special . | . . . Kinetic 70 | 6 40 24 Thermal 72 | . 28 44 Explosive 6 | . 3 3 Electromagnetic 28 | 6 22 . Robot Hit Streak 24 | 2 13 24 Robot Miss Streak 6 | 1 6 2 Penetration Max . | . . . Secondary Targets . | . . . Shots Hit Robots 127 | 7 56 64 Core Hits 54 | 4 30 20 Critical Kills . | . . . Critical Parts Destroyed . | . . . Critical Strikes 1 | . 1 . Corrupt 1 | . 1 . Melee Attacks 53 | . . 53 Impact 53 | . . 53 Slashing . | . . . Piercing . | . . . Sneak Attacks . | . . . Combat Hostiles . | . . . Follow-up Attacks . | . . . Damage Inflicted 2598 | 118 929 1551 Guns 1234 | 78 609 547 Cannons 629 | . . 629 Explosions 547 | 40 319 188 Melee 162 | . . 162 Ramming 26 | . 1 25 Kinetic 583 | 20 200 363 Thermal 1125 | 40 272 813 Explosive 469 | . 281 188 Electromagnetic 233 | 58 175 . Impact 162 | . . 162 Slashing . | . . . Piercing . | . . . Highest Corruption 19 | . 5 19 Average Corruption 4 | . 1 5 Corruption Purged . | . . . Corruption Blocked . | . . . Effects 79 | . 11 68 Message Errors 15 | . 2 13 Matter Fused 18 | . 2 16 Heat Flow Errors 15 | . 5 10 Energy Discharges 8 | . . 8 Data Loss (minor) 12 | . . 12 Data Loss (major) 3 | . . 3 Misfires 3 | . 1 2 Alerts 2 | . 1 1 Weapon Failures 3 | . . 3 Overload Shots . | . . . Overflow Damage 20 | 3 8 9 Projectiles . | . . . Explosions 20 | 3 8 9 Melee . | . . . Knockbacks . | . . . Impact . | . . . Kinetic . | . . . Secondary . | . . . Self-Inflicted Damage 57 | . . 57 Shots 1 | . . 1 Rammed 1 | . 1 . Targets Rammed 1 | . 1 . Kicked . | . . . Crushed . | . . . Highest Temperature 297 | 40 297 251 Average Temperature 76 | 17 80 77 Received Heat Transfer 402 | . 195 207 Effects 3 | . 3 . Energy Bleed 1 | . 1 . Interference 2 | . 2 . Siege Activations . | . . . Martial Activations . | . . . Shielding Activations . | . . . Robots Disrupted . | . . . Combat Hostiles . | . . . Robots Corrupted 1 | . 1 . Combat Hostiles . | . . . Parts Fried 2 | 1 1 . Impact Corruptions . | . . . Robots Melted . | . . . Combat Hostiles . | . . . Parts Melted 1 | . . 1 Heat Transferred 1736 | 50 610 1076 Parts Sabotaged . | . . . Parts Stolen . | . . . Parts Stripped . | . . . Power Chain Reactions 2 | 1 1 . Alert | -11 -10 -10 ------- Run | Yrd Mat Sub Maximum Alert Level . | . . . Low Security (%) 100 | 100 100 . Level 1 . | . . . Level 2 . | . . . Level 3 . | . . . Level 4 . | . . . Level 5 . | . . . High Security . | . . . Max Security . | . . . Peak Influence 112 | 10 112 . Initial . | . . . Average 36 | 1 37 . Influence Increases 391 | 10 361 20 Destroy 0b10 Robot/C 200 | . 180 20 Destroy 0b10 Robot/NC 50 | 10 40 . Destroy Leader 54 | . 54 . Successful Hack 13 | . 13 . Select Force Hacks 30 | . 30 . Destroy Structure 29 | . 29 . Lose Combat Pursuer 15 | . 15 . Influence Decreases 391 | 10 325 56 Entered New Map 18 | . . 18 Time Decay 353 | 10 305 38 Lost Part 20 | . 20 . Squads Dispatched 2 | . 2 . Investigation 1 | . 1 . Extermination . | . . . Reinforcement 1 | . 1 . Assault . | . . . Garrison . | . . . Intercept . | . . . Searches Triggered . | . . . Construction Impeded . | . . . Haulers Reinforced . | . . . Active Scanning Responses . | . . . Cargo Convoy Interrupts . | . . . Stealth | -11 -10 -10 --------- Run | Yrd Mat Sub Distress Signals 1 | . 1 . Communications Jammed . | . . . Distress Signals . | . . . Times Spotted 33 | . 16 17 Peak Tracking Total 5 | . 5 2 Tactical Retreats 1 | . 1 . Traps | -11 -10 -10 ------- Run | Yrd Mat Sub Traps Triggered 3 | . 3 . Indirectly . | . . . Trap Hack Attempts . | . . . Triggered . | . . . Disarmed . | . . . Reprogrammed . | . . . Reused . | . . . Traps Extracted . | . . . Installed . | . . . Triggered . | . . . Machines | -11 -10 -10 ---------- Run | Yrd Mat Sub Machines Disabled 1 | . . 1 Max in Single Turn 1 | . . 1 Machines Repaired . | . . . Machines Dismantled . | . . . Machines Sabotaged . | . . . Overloaded Fab Kills . | . . . Hacking | -11 -10 -10 --------- Run | Yrd Mat Sub Machines Accessed 9 | . 7 2 Terminals 6 | . 6 . Fabricators . | . . . Repair Stations . | . . . Recycling Units 1 | . 1 . Scanalyzers . | . . . Garrison Access . | . . . Total Hacks 32 | . 28 4 Successful 19 | . 15 4 Failed 12 | . 12 . Catastrophic 2 | . 2 . Database Lockouts 1 | . 1 . Manual 25 | . 25 . Terminals 27 | . 27 . Fabricators . | . . . Repair Stations . | . . . Recycling Units 1 | . 1 . Scanalyzers . | . . . Garrison Access . | . . . Terminal Hacks 10 | . 6 4 Record 3 | . . 3 Robot Analysis 2 | . 2 . Terminal Index 1 | . 1 . Locate Traps 1 | . 1 . Zone Layout 2 | . 2 . Proto ID Catalog 1 | . . 1 Fabricator Hacks . | . . . Repair Station Hacks . | . . . Recycling Unit Hacks . | . . . Scanalyzer . | . . . Garrison Access Hacks . | . . . Unauthorized Hacks 9 | . 9 . Terminals 8 | . 8 . Botnet 2 | . 2 . Operators 1 | . 1 . Skim 5 | . 5 . Fabricators . | . . . Repair Stations . | . . . Recycling Units 1 | . 1 . Tunnel 1 | . 1 . Scanalyzers . | . . . Garrison Access . | . . . Data Cores Recovered . | . . . Used . | . . . Hacking Detections 6 | . 6 . Full Trace Events . | . . . Feedback Events . | . . . Feedback Blocked . | . . . Robot Schematics Acquired . | . . . Robots Built . | . . . Authchips . | . . . Time . | . . . Total Robot Build Rating . | . . . Part Schematics Acquired . | . . . Parts Built . | . . . Authchips . | . . . Time . | . . . Total Part Build Rating . | . . . Part Studies Acquired . | . . . Parts Repaired . | . . . Time . | . . . Parts Recycled . | . . . Recycled Matter . | . . . Retrieved Matter . | . . . Retrieved Components . | . . . Parts Scanalyzed . | . . . Part Schematics Acquired . | . . . Parts Damaged . | . . . Bothacking | -11 -10 -10 ------------ Run | Yrd Mat Sub Used RIF Installer . | . . . Robots Hacked . | . . . Non-combat . | . . . Combat . | . . . Robot Hacks Applied . | . . . Relay Couplers Released . | . . . Fabnet Peak Effective % . | . . . Robots Rewired . | . . . Allies Hacked . | . . . Hacks Repelled . | . . . Allies | -11 -10 -10 -------- Run | Yrd Mat Sub Total Allies . | . . . Largest Group . | . . . Highest-Rated Group . | . . . Highest-Rated Ally . | . . . Total Orders . | . . . Ally Attacks . | . . . Total Damage . | . . . Kills . | . . . Allies Corrupted . | . . . Allies Melted . | . . . Intel | -11 -10 -10 ------- Run | Yrd Mat Sub Active Infowar (turns) . | . . . Robot Analysis Total 2 | . 2 . Derelict Logs Recovered 3 | . . 3 Drone Launches . | . . . Drone Recoveries . | . . . Exploration | -11 -10 -10 ------------- Run | Yrd Mat Sub Turns Passed 3483 | 41 996 2446 Spaces Moved 1656 | 17 516 1123 Core . | . . . Treads 1092 | 5 516 571 Legs 12 | 12 . . Wheels 552 | . . 552 Hover . | . . . Flight . | . . . Fastest Speed 100 | 120 160 100 Average Speed 161 | 131 160 163 Slowest Speed 260 | 160 160 260 Overloaded Moves . | . . . Propulsion Burnouts . | . . . Robots Hopped . | . . . Potential Cave-ins . | . . . Cave-ins Triggered . | . . . Exploration Rate (%) 49 | 2 81 64 Regions Visited 2 Branch Regions 1 Pre-discovered Areas 4 | . 1 3 Known Exits Taken 1 | . 1 . Unknown Exits Taken 1 | 1 . . Scrap Searched 6 | . . 6 Spaces Dug 3 | . . 3 Terrain Destroyed 54 | 3 35 16 Melee 3 | . . 3 Projectile 2 | . . 2 AOE 49 | 3 35 11 Terrain Rammed 14 | . . 14 Walls Destroyed . | . . . Machines Disabled . | . . . Actions | -11 -10 -10 --------- Run | Yrd Mat Sub Total 2160 | 26 601 1533 Wait 247 | . 11 236 Move 1654 | 16 515 1123 Hop . | . . . Pick Up 18 | . 11 7 Fast Attach 9 | . 3 6 Attach 7 | 2 1 4 Detach 1 | . . 1 Swap 12 | . 4 8 Drop 23 | 2 6 15 Fire 119 | 6 49 64 Melee 53 | . . 53 Ram 13 | . . 13 Kick . | . . . Crush 1 | . 1 . Escape Stasis . | . . . Rewire . | . . . Trap . | . . . Miscellaneous 3 | . . 3 Route ------- -11/Scrapyard -10/Materials (discovered 5 exits: [*Mat x3] / [*Min] / *Sub) -10/Subcaves (discovered 5 exits: *Mat x2 / Rec / [*Scr x2]) History --------- Turn | Location | Event 4 | -11/Scrapyard | Discovered new exit (range 2) 42 | -11/Scrapyard | Entered Materials 43 | -10/Materials | Met a group of wandering Federalists 146 | -10/Materials | Central database locked down 162 | -10/Materials | Discovered new exit (range 22) 227 | -10/Materials | Discovered new exit (range 15) 313 | -10/Materials | Build established: Mutant 423 | -10/Materials | Discovered new exit (range 8) 511 | -10/Materials | Discovered new exit (range 5) 659 | -10/Materials | Learned Storage security intel 725 | -10/Materials | Learned location of 2 exits from Subcaves 827 | -10/Materials | Learned 2 Mines zone layouts 862 | -10/Materials | Learned Storage emergency access door positions 905 | -10/Materials | Identified exit to Subcaves 905 | -10/Materials | Learned location of 2 exits from Materials 1038 | -10/Materials | Entered Subcaves 1039 | -10/Subcaves | Continued accompanying wandering Federalists (3) 1039 | -10/Subcaves | Approached by a straggling Scientist 1039 | -10/Subcaves | Identified exit to Recycling 1039 | -10/Subcaves | Identified exit to Materials 1052 | -10/Subcaves | Scientist uncovered a shortcut to Scraptown 1145 | -10/Subcaves | Shifting Twisted Machinery released Shrapnel Trap 1149 | -10/Subcaves | Shifting Twisted Machinery released Spk. Treads 1267 | -10/Subcaves | Wandering Federalist uncovered a shortcut to Scraptown 1275 | -10/Subcaves | Learned location of Zion (-7) 1613 | -10/Subcaves | Ambushed by angry Subdweller bent on revenge 1707 | -10/Subcaves | Disturbed a concealed Subdweller 1713 | -10/Subcaves | Core integrity fell below 50% 2137 | -10/Subcaves | Build established: Subdweller-Mutant 2146 | -10/Subcaves | Ambushed by Subdweller buried in earth 2291 | -10/Subcaves | Visited Clippyterm 2298 | -10/Subcaves | Learned location of Extension (-6) 2584 | -10/Subcaves | A swath of the cavern ceiling suddenly collapsed 2710 | -10/Subcaves | Discovered exit to Materials (range 12) 2714 | -10/Subcaves | Build established: Mutant 2841 | -10/Subcaves | Core integrity fell below 20% 3239 | -10/Subcaves | Shifting Twisted Machinery released Piercing Trap 3288 | -10/Subcaves | Met a Zionite searching for "candidates" 3301 | -10/Subcaves | Learned 2 Materials zone layouts 3347 | -10/Subcaves | Learned Materials stockpile data 3394 | -10/Subcaves | Visited 4L-MR0's lab 3449 | -10/Subcaves | System corruption reached 10% 3484 | -10/Subcaves | Core destroyed Last Messages --------------- 03448_ Spk. Treads broken. 03448_ Destabilizing: Short circuit. 03452_ Slammed into Wall. 03456_ Destabilizing: System corrupted (+2). 03460_ Slammed into Wall. 03460_ Destabilizing: System corrupted (+1). 03460_ Destabilizing: Core damaged (-2). 03464_ Slammed into Wall. 03464_ Destabilizing: Core damaged (-2). 03468_ Slammed into Wall. 03468_ Destabilizing: Core damaged (-2). 03472_ Slammed into Wall. 03472_ Destabilizing: System corrupted (+2). 03472_ Destabilizing: Core damaged (-5). 03476_ Slammed into Wall. 03476_ Destabilizing: System corrupted (+1). 03480_ Slammed into Wall. 03480_ Destabilizing: System corrupted (+2). 03484_ Slammed into Wall. 03484_ Destabilizing: Core damaged (-12). Map ----- +----------------------------------------------------+ | ?????????????????????????????????????????????????? | | ?????????????????????????????????????????????????? | | ?????????????????????????????????????????????????? | | ?????????????????????????????????????????????????? | | ?????????????????????????????????????????????????? | | ?????????????????????????????????????????????????? | | ?????????????????????????????????????????????????? | | ?????????????????????????????????????????????????? | | ?????????????????????????????????????????????????? | | ????????????????????????????? ??????????????? | | ????????????????????????????# ?????????????? | | ?????????????????????????? ?????????????? | | ?????????????????????????? #?????????????? | | ??????????????????####????? ##????????????? | | ?????????????????? ????? % #????????????? | | ?????????????????? ?????? % #????????????? | | ?????????????????? ?????? % ##???????????? | | ?????????????????? #??????? ###?????????? | | ?????????#######?? #??????? #?????????? | | ?????????#" ""##? ##??????# #?????????? | | ??????#### " ### ???????# #??????????? | | ??????#" # ## "## ????????? #???????????? | | ??????# %#+## "## #?????????# ##??????????? | | ??????#" ## # #???????### ##?????????? | | ??????#" #### ## #???##### #?????????? | | ??????#"" #?# #" #####@ ## #?????????? | | ??????#"X #?# ##??????????????? | | ??????#"" #?# ## #???????????????? | | ??????#" ### # " #### ##???????????????? | | ??????##/ ##" ###< ####?## ##?????????????#### | | ???????""#### ## #???## #??????????????# # | | ??????? !?### ["### #??## ##??##??##??????# | | ??????###?#" ###?# ?## ##?? ## ##?????# | | ??????????#####??? ## ##### #?????# | | ?????????????????? ### ## #?????## | | ?????????????????? ##?## #???????# | | ?????????????????? ????## #?###????## # | | ????????????????? ???### ### #### ###### # | | ????????????????? ???# ##????## # | | ????????????????? ???## #?????# # | | ????????????????? ????# #?????#### | | ????????????????#? ????# #????????## | | ???????????????## ????# ##?????????### # | | ???????????????# ?### ##?????####???# # | | ??????????????## # # ####??## ##??## # | | ??????????????# #### ##### ## | | ??????????????# #?# #? | | ??????????????# # ### # ##?## ##? | | ??????????????#???##???## ### ##?# ##?? | | ????????????????????????# ### #### ### ##??? | +----------------------------------------------------+ Best States ------------- Heat Dissipation 25 Energy Generation 10 Energy Capacity 250 Matter Stores 300 Matter Capacity 300 Sight Range 16 Terrain Scan Density 10 Armor Coverage 800 Evasion (%) 45 Recoil Reduction 2 Item Schematics ----------------- None Robot Schematics ------------------ None Fabricated ------------ Nothing Repaired ---------- Nothing Studied --------- None Alien Tech Used ----------------- None Achievements -------------- None Challenges ------------ None Game ------ Seed ParticleTerrorPropulsion Manual? 0 Play Time 00:19:00 Cumulative 388.8 hours Start 2026.04.05 @ 16:12:04 End 2026.04.05 @ 16:29:28 Sessions 1 Manual Loads 0 Difficulty Rogue Special Mode None Game No. 329 Rogue 293 Adventurer 36 Explorer 0 Win Type - Total 5 Types 2/0/0/1/0/0/0/2/0/0 Lore% 73 Gallery% 66 Achievement% 55 Wizard Run 0 Options --------- Layout 1 ASCII 0 Keyboard 0 Movement Numpad Keybinds 0 Fullscreen 1 Font 48/Smallcaps Map View 50x35 Zoom Use 0% Tactical HUD 1 Map Filters NONE Filters NONE Steam 1 RUN: f16360db-474d-44cb-9338-7887b7a4b0b3